bitfinex/quotes_BTCUSD_20220120
["timestamp","ask_amount","ask_price","bid_price","bid_amount"]
[1642661502239,1.82050736,42020.0,42019.0,0.00010314]
[1642661503699,1.01273117,42020.0,42019.0,0.00010314]
[1642661505391,1.25273117,42020.0,42019.0,0.00010314]
[1642661506438,0.24,42020.0,42019.0,0.00010314]
[1642661506637,0.24,42020.0,42019.0,0.38494914]
[1642661507237,0.24,42020.0,42019.0,0.88494914]
[1642661511585,0.24,42020.0,42019.0,1.49226201]
[1642661512688,0.24,42020.0,42019.0,1.49352499]
[1642661513286,0.24,42020.0,42019.0,2.60742779]
[1642661513491,0.24,42020.0,42019.0,2.06084611]
[1642661513688,0.24,42020.0,42019.0,2.08784611]
[1642661513937,0.24,42020.0,42019.0,2.7965755]
[1642661514339,0.24,42020.0,42019.0,2.08784611]
[1642661514538,0.24,42020.0,42019.0,2.79657396]
[1642661515140,0.24,42020.0,42019.0,2.76957396]
[1642661515441,0.24,42020.0,42019.0,2.78577396]
[1642661515639,0.24,42020.0,42019.0,2.81277396]
[1642661516640,0.24,42020.0,42019.0,3.23277396]
[1642661516841,0.24,42020.0,42019.0,3.20577396]
[1642661517689,0.24,42020.0,42019.0,2.52304611]
[1642661518789,0.24,42020.0,42019.0,2.44704611]
[1642661519491,0.24,42020.0,42019.0,2.47304611]
[1642661519790,0.24,42020.0,42019.0,2.52304611]
[1642661520192,0.24,42020.0,42019.0,2.34489611]
[1642661520701,0.24,42020.0,42019.0,2.35684611]
[1642661520891,0.24,42020.0,42019.0,2.31889611]
[1642661521540,0.24,42020.0,42019.0,2.34489611]
[1642661522738,0.02388805,42021.0,42020.0,0.85]
[1642661522940,0.00077408,42022.0,42021.0,0.85]
[1642661523138,0.00077408,42022.0,42021.0,1.72348585]
[1642661523347,0.00069002,42022.0,42021.0,1.38405961]
[1642661523538,0.00069002,42022.0,42021.0,2.4157436]
[1642661523745,6.876e-05,42029.0,42027.0,0.00128691]
[1642661523937,6.876e-05,42029.0,42028.0,0.984846]
[1642661524138,6.876e-05,42029.0,42028.0,1.55075867]
[1642661524537,6.876e-05,42029.0,42028.0,0.95075867]
[1642661525198,6.876e-05,42029.0,42028.0,1.25387694]
[1642661525598,6.876e-05,42029.0,42028.0,1.26487694]
[1642661525799,0.24006876,42029.0,42028.0,1.26487694]
[1642661526405,0.23953876,42029.0,42028.0,1.26487694]
[1642661526605,0.23953876,42029.0,42028.0,1.68487694]
[1642661527002,0.00077401,42031.0,42028.0,1.67387694]
[1642661527402,0.09602562,42036.0,42028.0,1.67387694]
[1642661527603,0.00077401,42031.0,42028.0,1.68887694]
[1642661528504,0.09614596,42036.0,42028.0,1.68887694]
[1642661528804,0.00077345,42032.0,42028.0,1.68887694]
[1642661529441,0.00077345,42032.0,42028.0,1.67387694]
[1642661529640,0.1,42034.0,42028.0,1.68787694]
[1642661529840,0.00077345,42032.0,42028.0,1.68787694]
[1642661530240,0.00077345,42032.0,42028.0,1.38475867]
[1642661530641,0.00077345,42032.0,42029.0,0.29243209]
[1642661530841,6.877e-05,42033.0,42030.0,0.384846]
[1642661531041,0.00077345,42032.0,42030.0,0.384846]
[1642661531646,0.00677345,42032.0,42031.0,0.548258]
[1642661531846,0.00677345,42032.0,42031.0,0.683104]
[1642661532042,0.006,42032.0,42031.0,0.683104]
[1642661532897,6.877e-05,42033.0,42031.0,0.683104]
[1642661533088,6.877e-05,42033.0,42032.0,1.24342188]
[1642661533491,6.877e-05,42033.0,42032.0,0.69342188]
[1642661533790,0.01906877,42033.0,42032.0,0.70142188]
[1642661534792,6.877e-05,42033.0,42032.0,0.69342188]
[1642661535593,6.877e-05,42033.0,42032.0,0.70642188]
[1642661536640,6.877e-05,42033.0,42032.0,1.12642188]
[1642661536944,6.877e-05,42033.0,42032.0,1.11342188]
[1642661537641,6.877e-05,42033.0,42032.0,1.12642188]
[1642661538741,6.877e-05,42033.0,42032.0,1.12821862]
[1642661538943,6.877e-05,42033.0,42032.0,1.11521862]
[1642661539644,6.877e-05,42033.0,42032.0,1.18721862]
[1642661540292,6.877e-05,42033.0,42032.0,1.18753092]
[1642661540691,6.877e-05,42033.0,42032.0,1.18900845]
[1642661540889,6.877e-05,42033.0,42032.0,1.11699211]
[1642661541091,6.877e-05,42033.0,42032.0,0.80821924]
[1642661541589,6.877e-05,42033.0,42032.0,1.19245489]
[1642661541791,6.877e-05,42033.0,42032.0,0.88521924]
[1642661541995,6.877e-05,42033.0,42032.0,1.18862735]
[1642661542192,6.877e-05,42033.0,42032.0,0.88521924]
[1642661542592,0.10006877,42033.0,42032.0,0.88521924]
[1642661542892,0.10006877,42033.0,42032.0,0.80821924]
[1642661543692,0.10006877,42033.0,42032.0,0.88321924]
[1642661544738,0.10006877,42033.0,42032.0,0.87821924]
[1642661545039,0.10006877,42033.0,42032.0,0.80321924]
[1642661545640,0.10006877,42033.0,42032.0,1.15143251]
[1642661547696,0.10006877,42033.0,42032.0,1.12143251]
[1642661548497,0.10006877,42033.0,42032.0,0.81821924]
[1642661548898,0.10006877,42033.0,42032.0,1.12161466]
[1642661549297,0.10006877,42033.0,42032.0,1.10661466]
[1642661549705,0.10006877,42033.0,42032.0,1.12261466]
[1642661550902,0.10006877,42033.0,42032.0,1.10661466]
[1642661551749,0.10006877,42033.0,42032.0,1.13061466]
[1642661552949,0.10006877,42033.0,42032.0,1.10661466]
[1642661553652,0.10006877,42033.0,42032.0,1.19261466]
[1642661554957,0.10006877,42033.0,42032.0,1.10661466]
[1642661555596,0.10006877,42033.0,42032.0,1.14361466]
[1642661556193,0.10006877,42033.0,42032.0,1.14486252]
[1642661556391,0.10006877,42033.0,42032.0,0.8414671]
[1642661556593,0.10006877,42033.0,42032.0,0.84021924]
[1642661556900,0.10006877,42033.0,42032.0,0.80321924]
[1642661557690,0.10006877,42033.0,42032.0,0.82521924]
[1642661558946,0.10006877,42033.0,42032.0,0.80321924]
[1642661559742,0.10006877,42033.0,42032.0,0.86921924]
[1642661560944,0.10006877,42033.0,42032.0,0.80321924]
[1642661561742,0.10006877,42033.0,42032.0,0.84221924]
[1642661562996,0.10006877,42033.0,42032.0,0.80321924]
[1642661563597,0.10006877,42033.0,42032.0,0.85421924]
[1642661563799,0.10006877,42033.0,42032.0,0.85511762]
[1642661564999,0.10006877,42033.0,42032.0,0.80411762]
[1642661565800,0.10006877,42033.0,42032.0,0.87511762]
[1642661567043,0.10006877,42033.0,42032.0,0.80411762]
[1642661567643,0.10006877,42033.0,42032.0,0.87711762]
[1642661568944,0.10006877,42033.0,42032.0,0.80411762]
[1642661569546,0.10006877,42033.0,42032.0,1.09535964]
[1642661569745,0.10106877,42033.0,42032.0,1.14735964]
[1642661569945,0.10106877,42033.0,42032.0,1.14772315]
[1642661570791,0.10106877,42033.0,42032.0,0.85611762]
[1642661570992,0.10006877,42033.0,42032.0,0.80411762]
[1642661571193,0.10006877,42033.0,42032.0,1.09533045]
[1642661571794,0.10006877,42033.0,42032.0,1.16133045]
[1642661572193,0.10006877,42033.0,42032.0,0.87011762]
[1642661572794,0.10006877,42033.0,42032.0,1.16182943]
[1642661573099,0.10006877,42033.0,42032.0,1.09582943]
[1642661573294,0.10006877,42033.0,42032.0,0.80411762]
[1642661573495,0.10006877,42033.0,42032.0,1.09543554]
[1642661573694,0.10006877,42033.0,42032.0,0.87511762]
[1642661574939,0.10006877,42033.0,42032.0,0.80411762]
[1642661575745,0.10006877,42033.0,42032.0,0.87511762]
[1642661577142,0.10006877,42033.0,42032.0,0.80411762]
[1642661577789,0.10006877,42033.0,42032.0,0.87511762]
[1642661578990,0.10006877,42033.0,42032.0,0.80411762]
[1642661579692,0.10006877,42033.0,42032.0,0.87711762]
[1642661580895,0.10006877,42033.0,42032.0,0.80411762]
[1642661581742,0.10006877,42033.0,42032.0,0.87511762]
[1642661582545,0.15006877,42033.0,42032.0,0.87511762]
[1642661583045,0.15006877,42033.0,42032.0,0.80411762]
[1642661583843,0.15106877,42033.0,42032.0,0.87411762]
[1642661585045,0.15006877,42033.0,42032.0,0.80411762]
[1642661585301,0.14926877,42033.0,42032.0,0.80411762]
[1642661585498,0.14926877,42033.0,42032.0,1.0998314]
[1642661585698,0.14926877,42033.0,42032.0,1.1708314]
[1642661586298,0.14926877,42033.0,42032.0,0.87511762]
[1642661586497,0.14926877,42033.0,42032.0,1.16883562]
[1642661587202,0.0006996,42035.0,42033.0,0.85]
[1642661587402,0.0006996,42035.0,42034.0,1.29008086]
[1642661587603,0.00070659,42035.0,42034.0,1.29008086]
[1642661588200,0.00070659,42035.0,42034.0,1.64826215]
[1642661588409,0.00070659,42035.0,42034.0,1.09826215]
[1642661588605,0.09589886,42044.0,42034.0,1.09826215]
[1642661588801,0.00070661,42037.0,42035.0,0.26417316]
[1642661589045,0.00070661,42037.0,42036.0,1.84554729]
[1642661589444,0.00077537,42037.0,42036.0,1.84554729]
[1642661589645,6.876e-05,42037.0,42036.0,1.84554729]
[1642661589845,6.876e-05,42037.0,42036.0,1.92554729]
[1642661590047,6.876e-05,42037.0,42036.0,1.48914416]
[1642661590246,6.876e-05,42037.0,42036.0,1.23950776]
[1642661591048,6.876e-05,42037.0,42036.0,1.15950776]
[1642661591747,6.876e-05,42037.0,42036.0,1.24750776]
[1642661591952,6.876e-05,42037.0,42036.0,0.93311172]
[1642661592992,6.876e-05,42037.0,42036.0,0.84511172]
[1642661593393,6.876e-05,42037.0,42036.0,0.3843386]
[1642661593798,6.876e-05,42037.0,42036.0,0.47602357]
[1642661593993,0.00079396,42039.0,42036.0,0.47602357]
[1642661594595,0.09593472,42044.0,42036.0,0.47602357]
[1642661594895,0.00076719,42040.0,42036.0,0.47402882]
[1642661595093,0.00076719,42040.0,42037.0,0.383975]
[1642661595795,0.09603786,42043.0,42037.0,0.416975]
[1642661595998,0.00076806,42041.0,42037.0,0.033]
[1642661596943,8.595e-05,42042.0,42036.0,0.38502882]
[1642661597342,0.00083682,42041.0,42036.0,0.38502882]
[1642661597542,0.00083682,42041.0,42037.0,0.383975]
[1642661597743,0.00076806,42041.0,42037.0,0.383975]
[1642661598146,0.09670278,42041.0,42037.0,0.383975]
[1642661598355,0.05076806,42041.0,42037.0,0.383975]
[1642661598546,0.05077597,42041.0,42037.0,0.383975]
[1642661598742,0.00077597,42041.0,42037.0,0.383975]
[1642661598951,0.00077597,42041.0,42038.0,0.00267977]
[1642661599144,0.09675395,42041.0,42039.0,0.383975]
[1642661599344,0.09675395,42041.0,42038.0,0.00267977]
[1642661599543,0.05077597,42041.0,42038.0,0.00267977]
[1642661599744,0.054,42041.0,42039.0,0.02]
[1642661599945,0.004,42041.0,42039.0,0.02]
[1642661600191,0.004,42041.0,42039.0,0.02037324]
[1642661600993,0.00086099,42042.0,42039.0,0.00037324]
[1642661601394,6.876e-05,42041.0,42039.0,0.00037324]
[1642661601795,6.876e-05,42041.0,42039.0,0.02037324]
[1642661603097,6.876e-05,42041.0,42039.0,0.00037324]
[1642661603943,0.00206876,42041.0,42040.0,0.00267457]
[1642661605147,6.876e-05,42041.0,42040.0,0.00267457]
[1642661605344,6.876e-05,42041.0,42040.0,0.00304758]
[1642661605747,0.00506876,42041.0,42040.0,0.05204758]
[1642661606144,0.10100634,42041.0,42040.0,0.05204758]
[1642661606544,0.15100634,42041.0,42040.0,0.05204758]
[1642661606944,0.15100634,42041.0,42040.0,0.00304758]
[1642661606945,0.14600634,42041.0,42040.0,0.00304758]
[1642661607893,0.15300634,42041.0,42040.0,0.01504758]
[1642661608492,0.00706876,42041.0,42040.0,0.01504758]
[1642661608692,0.15304781,42041.0,42040.0,0.01504758]
[1642661608994,0.15304781,42041.0,42040.0,0.00304758]
[1642661609192,0.14604781,42041.0,42040.0,0.00304758]
[1642661609994,0.05606876,42041.0,42040.0,0.01604758]
[1642661610593,0.00606876,42041.0,42040.0,0.01604758]
[1642661610995,6.876e-05,42041.0,42040.0,0.00304758]
[1642661611846,0.00806876,42041.0,42040.0,0.01204758]
[1642661612443,0.1539769,42041.0,42040.0,0.01204758]
[1642661612643,0.05806876,42041.0,42040.0,0.01204758]
[1642661612843,0.1039769,42041.0,42040.0,0.01204758]
[1642661613044,0.05806876,42041.0,42040.0,0.01204758]
[1642661613644,0.00806876,42041.0,42040.0,0.00304758]
[1642661613844,0.00906876,42041.0,42040.0,0.01204758]
[1642661614244,0.10497391,42041.0,42040.0,0.01204758]
[1642661614445,0.05906876,42041.0,42040.0,0.01204758]
[1642661614749,0.10497391,42041.0,42040.0,0.01204758]
[1642661614945,0.10906876,42041.0,42040.0,0.01204758]
[1642661615194,0.10497391,42041.0,42040.0,0.01204758]
[1642661615395,0.20497391,42041.0,42040.0,0.01204758]
[1642661615697,0.19597391,42041.0,42040.0,0.00304758]
[1642661615895,0.20497391,42041.0,42040.0,0.01104758]
[1642661617095,0.15497391,42041.0,42040.0,0.01104758]
[1642661617697,0.14597391,42041.0,42040.0,0.00304758]
[1642661617895,0.15497391,42041.0,42040.0,0.01204758]
[1642661618095,0.05906876,42041.0,42040.0,0.01204758]
[1642661618394,0.1549707,42041.0,42040.0,0.01204758]
[1642661618594,0.05906876,42041.0,42040.0,0.01204758]
[1642661619046,0.09596982,42041.0,42040.0,0.00304758]
[1642661619445,0.05006876,42041.0,42040.0,0.00304758]
[1642661619747,6.876e-05,42041.0,42040.0,0.01104758]
[1642661619951,0.00906876,42041.0,42040.0,0.01104758]
[1642661621748,6.876e-05,42041.0,42040.0,0.00304758]
[1642661621951,0.00906876,42041.0,42040.0,0.01104758]
[1642661623199,6.876e-05,42041.0,42040.0,0.00304758]
[1642661623800,0.00906876,42041.0,42040.0,0.01104758]
[1642661624203,0.06855884,42041.0,42040.0,0.01104758]
[1642661624504,0.16343732,42041.0,42040.0,0.01104758]
[1642661625106,0.15443732,42041.0,42040.0,0.00304758]
[1642661625908,1.06556842,42041.0,42040.0,0.00304758]
[1642661626107,1.28456642,42041.0,42040.0,0.00304758]
[1642661626303,1.45724148,42041.0,42033.0,0.42]
[1642661626577,0.059507,42036.0,42033.0,0.42]
[1642661626760,0.67513082,42034.0,42033.0,0.42]
[1642661626958,0.72303082,42034.0,42033.0,0.42]
[1642661627255,0.9679093,42034.0,42033.0,0.42006876]
[1642661627856,0.9789093,42034.0,42033.0,0.42006876]
[1642661628360,1.30901419,42034.0,42033.0,0.42006876]
[1642661628766,1.43080499,42034.0,42033.0,0.42006876]
[1642661629161,1.41980499,42034.0,42033.0,0.42006876]
[1642661629558,1.0897001,42034.0,42033.0,0.42006876]
[1642661629959,1.0997001,42034.0,42033.0,0.42006876]
[1642661630214,0.9779093,42034.0,42033.0,0.42100623]
[1642661630412,1.0997001,42034.0,42033.0,0.42100623]
[1642661630610,0.9779093,42034.0,42033.0,0.42100623]
[1642661630811,1.0997001,42034.0,42033.0,0.42100623]
[1642661631014,0.9779093,42034.0,42033.0,0.42100623]
[1642661631214,1.0897001,42034.0,42033.0,0.42100623]
[1642661631513,0.29277848,42034.0,42033.0,0.42100623]
[1642661631713,0.41456928,42034.0,42033.0,0.42100623]
[1642661631913,0.20177848,42034.0,42033.0,0.42100623]
[1642661632114,0.30177848,42034.0,42033.0,0.42100623]
[1642661633116,0.20177848,42034.0,42033.0,0.42100623]
[1642661633318,0.29277848,42034.0,42033.0,0.42100623]
[1642661633948,0.30177848,42034.0,42033.0,0.42100623]
[1642661634348,0.20177848,42034.0,42033.0,0.42100623]
[1642661634548,0.30177848,42034.0,42033.0,0.42100623]
[1642661635149,0.29277848,42034.0,42033.0,0.42100623]
[1642661635354,0.29277848,42034.0,42033.0,0.4205538]
[1642661635548,0.19277848,42034.0,42033.0,0.4205538]
[1642661635948,0.45177848,42034.0,42033.0,0.4205538]
[1642661636150,0.55177848,42034.0,42033.0,0.4205538]
[1642661637153,0.54277848,42034.0,42033.0,0.4205538]
[1642661637804,0.55177848,42034.0,42033.0,0.4205538]
[1642661639000,0.54277848,42034.0,42033.0,0.4205538]
[1642661639903,0.55177848,42034.0,42033.0,0.4205538]
[1642661640107,0.30177848,42034.0,42033.0,0.4205538]
[1642661640509,0.20177848,42034.0,42033.0,0.4205538]
[1642661640704,0.30177848,42034.0,42033.0,0.4205538]
[1642661641107,0.29277848,42034.0,42033.0,0.4205538]
[1642661641757,0.19277848,42034.0,42033.0,0.4205538]
[1642661641954,0.20177848,42034.0,42033.0,0.4205538]
[1642661643161,0.19277848,42034.0,42033.0,0.4205538]
[1642661643856,0.20277848,42034.0,42033.0,0.4205538]
[1642661645058,0.19277848,42034.0,42033.0,0.4205538]
[1642661645903,0.20277848,42034.0,42033.0,0.4205538]
[1642661647105,0.19277848,42034.0,42033.0,0.4205538]
[1642661648007,0.20377848,42034.0,42033.0,0.4205538]
[1642661649256,0.19277848,42034.0,42033.0,0.4205538]
[1642661649552,0.19277848,42034.0,42033.0,0.42048357]
[1642661649955,0.20277848,42034.0,42033.0,0.42048357]
[1642661650153,0.2595446,42034.0,42033.0,0.42048357]
[1642661651152,0.2495446,42034.0,42033.0,0.42048357]
[1642661651552,0.2657446,42034.0,42033.0,0.42048357]
[1642661651955,0.2747446,42034.0,42033.0,0.42048357]
[1642661653205,0.2657446,42034.0,42033.0,0.42048357]
[1642661654004,0.17986612,42034.0,42033.0,0.42048357]
[1642661656011,0.18586612,42034.0,42033.0,0.42048357]
[1642661656852,0.13586612,42034.0,42033.0,0.42048357]
[1642661657051,0.11966612,42034.0,42033.0,0.42048357]
[1642661657251,0.11002612,42034.0,42033.0,0.42048357]
[1642661657452,0.10402612,42034.0,42033.0,0.42048357]
[1642661657854,0.04936,42034.0,42033.0,0.42048357]
[1642661658054,0.009,42034.0,42033.0,0.42048357]
[1642661658857,0.009,42034.0,42033.0,0.72116168]
[1642661659056,0.009,42034.0,42033.0,1.10513668]
[1642661659257,6.876e-05,42041.0,42033.0,1.10513668]
[1642661659471,6.876e-05,42041.0,42037.0,0.29378387]
[1642661659657,0.09818276,42041.0,42037.0,0.29378387]
[1642661660057,0.10818276,42041.0,42037.0,0.29378387]
[1642661660504,0.098114,42040.0,42037.0,0.29378387]
[1642661660701,0.157606,42040.0,42037.0,0.29378387]
[1642661660903,0.207606,42040.0,42033.0,0.42048357]
[1642661661106,0.098114,42039.0,42033.0,0.42048357]
[1642661662005,0.00102694,42038.0,42034.0,0.27582151]
[1642661662304,0.059496,42037.0,42034.0,0.27582151]
[1642661663956,0.067496,42037.0,42034.0,0.27582151]
[1642661665350,0.067496,42037.0,42036.0,0.00038709]
[1642661665951,0.073496,42037.0,42036.0,0.00038709]
[1642661666353,0.123496,42037.0,42036.0,0.00038709]
[1642661667154,0.109496,42037.0,42036.0,0.00038709]
[1642661667555,0.059496,42037.0,42036.0,0.00038709]
[1642661668100,0.014,42037.0,42036.0,0.00038709]
[1642661669302,0.00102695,42039.0,42036.0,0.00038709]
[1642661669502,0.0983321,42037.0,42036.0,0.00038709]
[1642661669702,0.09935905,42039.0,42036.0,0.00038709]
[1642661669903,0.015,42037.0,42036.0,0.00038709]
[1642661670307,0.059497,42036.0,42034.0,0.2762086]
[1642661670503,0.059497,42036.0,42034.0,0.00038709]
[1642661671949,0.066497,42036.0,42034.0,0.00038709]
[1642661673153,0.059497,42036.0,42034.0,0.00038709]
[1642661673954,0.066497,42036.0,42034.0,0.00038709]
[1642661674154,0.007,42036.0,42034.0,0.00038709]
[1642661675201,0.00102693,42037.0,42034.0,0.00038709]
[1642661675400,0.00102693,42037.0,42033.0,0.42038585]
[1642661676103,0.001,42037.0,42033.0,0.42038585]
[1642661676301,0.00202693,42037.0,42033.0,0.42038585]
[1642661676701,0.10035784,42037.0,42033.0,0.42038585]
[1642661677308,0.05,42038.0,42033.0,0.42038585]
[1642661677502,0.00102693,42037.0,42033.0,0.42038585]
[1642661677701,0.09936683,42037.0,42033.0,0.42038585]
[1642661678103,0.05302693,42037.0,42033.0,0.42038585]
[1642661678502,0.002,42037.0,42033.0,0.42038585]
[1642661678705,0.00302693,42037.0,42033.0,0.42038585]
[1642661679851,0.059493,42039.0,42033.0,0.42038585]
[1642661680052,0.00302693,42037.0,42033.0,0.42038585]
[1642661680253,0.00302693,42037.0,42035.0,0.00038732]
[1642661680853,0.002,42037.0,42035.0,0.00038732]
[1642661681253,0.00102694,42038.0,42035.0,0.00038732]
[1642661681653,0.09942673,42038.0,42035.0,0.00038732]
[1642661681854,0.00102694,42038.0,42035.0,0.00038732]
[1642661682058,0.013,42038.0,42035.0,0.00038732]
[1642661682454,0.09839979,42037.0,42035.0,0.00038732]
[1642661682695,0.14839979,42037.0,42035.0,0.00038732]
[1642661682901,0.14759979,42037.0,42035.0,0.00038732]
[1642661683103,0.09839979,42036.0,42035.0,0.00038732]
[1642661683696,0.09839979,42037.0,42035.0,0.00038732]
[1642661683896,0.09839979,42036.0,42035.0,0.00038732]
[1642661684098,0.11439979,42036.0,42035.0,0.00038732]
[1642661684298,0.066,42036.0,42035.0,0.00038732]
[1642661684498,0.11439979,42036.0,42035.0,0.00038732]
[1642661685099,0.016,42036.0,42035.0,0.00038732]
[1642661685300,0.11052294,42038.0,42033.0,0.42038562]
[1642661685500,0.09738643,42036.0,42033.0,0.42038562]
[1642661685700,0.09738643,42037.0,42033.0,0.42038562]
[1642661686102,0.005,42036.0,42033.0,0.42038562]
[1642661687952,0.0983602,42035.0,42033.0,0.42038562]
[1642661688153,0.35553954,42035.0,42033.0,0.42038562]
[1642661688354,0.51293954,42035.0,42033.0,0.42038562]
[1642661688558,0.41457934,42035.0,42033.0,0.42038562]
[1642661689958,0.1574,42035.0,42033.0,0.42038562]
[1642661690201,0.1089,42035.0,42033.0,0.42038562]
[1642661691401,0.0979,42035.0,42033.0,0.42038562]
[1642661691804,0.0479,42035.0,42033.0,0.42038562]
[1642661692102,0.0579,42035.0,42033.0,0.42038562]
[1642661692507,0.01,42035.0,42033.0,0.42038562]
[1642661693304,0.00102692,42036.0,42033.0,0.42038562]
[1642661694147,0.008,42036.0,42033.0,0.42038562]
[1642661695448,0.21389524,42041.0,42037.0,0.32894539]
[1642661695651,0.059492,42040.0,42037.0,0.32894539]
[1642661695848,0.059492,42040.0,42035.0,0.00038732]
[1642661696048,0.15685884,42040.0,42035.0,0.00038732]
[1642661696249,0.20685884,42040.0,42035.0,0.00038732]
[1642661696449,0.09736684,42039.0,42035.0,0.00038732]
[1642661697051,0.3170763,42038.0,42035.0,0.00038732]
[1642661697252,0.059502,42036.0,42035.0,0.00038732]
[1642661697550,0.107402,42036.0,42035.0,0.00038732]
[1642661697809,0.25476884,42036.0,42035.0,0.00038732]
[1642661698207,0.26676884,42036.0,42035.0,0.00038732]
[1642661699509,0.25476884,42036.0,42035.0,0.00038732]
[1642661700205,0.26776884,42036.0,42033.0,0.66294115]
[1642661700806,0.1109,42036.0,42033.0,0.66294115]
[1642661701005,0.0609,42036.0,42033.0,0.66294115]
[1642661701457,0.0479,42036.0,42033.0,0.66294115]
[1642661702051,0.09724169,42035.0,42033.0,0.66294115]
[1642661702556,0.001,42036.0,42033.0,0.66294115]
[1642661702752,0.00173798,42036.0,42033.0,0.66294115]
[1642661703154,0.059499,42035.0,42033.0,0.66294115]
[1642661703959,0.00073798,42036.0,42033.0,0.66294115]
[1642661704153,0.001,42035.0,42033.0,0.66294115]
[1642661705201,0.001,42035.0,42033.0,0.66286936]
[1642661705402,0.00072949,42036.0,42033.0,0.66286936]
[1642661706303,0.005,42036.0,42033.0,0.66286936]
[1642661707305,0.109496,42038.0,42033.0,0.66286936]
[1642661707504,0.00101621,42037.0,42033.0,0.66286936]
[1642661707704,0.09832528,42037.0,42033.0,0.66286936]
[1642661708109,0.10332528,42037.0,42033.0,0.66286936]
[1642661708504,0.10332528,42037.0,42033.0,0.59679288]
[1642661708505,0.14730907,42036.0,42033.0,0.59679288]
[1642661708706,0.14730907,42036.0,42033.0,0.35423758]
[1642661708955,0.059502,42034.0,42033.0,0.35423758]
[1642661710053,0.067502,42034.0,42033.0,0.35423758]
[1642661710255,0.067502,42034.0,42033.0,0.35385026]
[1642661711460,0.059502,42034.0,42033.0,0.35385026]
[1642661711653,0.00102813,42036.0,42033.0,0.35385026]
[1642661712055,0.006,42036.0,42033.0,0.35385026]
[1642661712455,0.09728966,42035.0,42033.0,0.35385026]
[1642661714001,0.09831644,42036.0,42035.0,0.00594772]
[1642661714604,0.09728966,42036.0,42035.0,0.00594772]
[1642661714803,0.05,42037.0,42035.0,0.00594772]
[1642661715007,0.09732236,42036.0,42035.0,0.00594772]
[1642661715302,0.0605218,42038.0,42035.0,0.00594772]
[1642661715303,0.14732236,42037.0,42035.0,0.00594772]
[1642661715501,0.09732236,42036.0,42035.0,0.00594772]
[1642661715908,0.05,42037.0,42035.0,0.00594772]
[1642661716202,0.008,42036.0,42035.0,0.00594772]
[1642661716857,0.00654,42036.0,42035.0,0.00594772]
[1642661717457,0.00102695,42038.0,42035.0,0.00594772]
[1642661717654,0.09729654,42036.0,42035.0,0.00594772]
[1642661717856,0.00102695,42038.0,42035.0,0.00594772]
[1642661718056,0.008,42036.0,42035.0,0.00594772]
[1642661718460,0.10529654,42036.0,42035.0,0.00594772]
[1642661718759,0.008,42036.0,42035.0,0.00594772]
[1642661718957,0.10529654,42036.0,42035.0,0.00594772]
[1642661719156,0.008,42036.0,42035.0,0.00594772]
[1642661719456,0.09729654,42036.0,42035.0,0.00594772]
[1642661720306,0.10129654,42036.0,42035.0,0.00633504]
[1642661721307,0.09229654,42036.0,42035.0,0.00633504]
[1642661721907,0.05,42037.0,42035.0,0.00633504]
[1642661722108,0.008,42036.0,42035.0,0.00633504]
[1642661723409,0.11052194,42038.0,42035.0,0.00633504]
[1642661724051,0.109495,42038.0,42035.0,0.00633504]
[1642661724249,0.116495,42038.0,42035.0,0.00633504]
[1642661724849,0.116495,42038.0,42036.0,0.27838617]
[1642661725250,0.057,42038.0,42036.0,0.27838617]
[1642661725449,0.109491,42041.0,42037.0,0.00038685]
[1642661725651,0.00102696,42039.0,42037.0,0.00038685]
[1642661726255,0.00702696,42039.0,42037.0,0.00038685]
[1642661726450,0.006,42039.0,42037.0,0.00038685]
[1642661727456,0.00102697,42040.0,42037.0,0.00038685]
[1642661727705,0.0479,42040.0,42037.0,0.00038685]
[1642661727905,0.04892697,42040.0,42037.0,0.00038685]
[1642661728110,0.05492697,42040.0,42037.0,0.00038685]
[1642661728915,0.0539,42040.0,42037.0,0.00038685]
[1642661729510,0.0479,42040.0,42037.0,0.00038685]
[1642661730311,0.0599,42040.0,42036.0,0.27877255]
[1642661731564,0.04892697,42040.0,42036.0,0.27877255]
[1642661732257,0.05792697,42040.0,42036.0,0.27877255]
[1642661732558,0.0569,42040.0,42036.0,0.27877255]
[1642661732758,0.05792697,42040.0,42036.0,0.27877255]
[1642661733559,0.04892697,42040.0,42036.0,0.27877255]
[1642661733766,0.0479,42040.0,42036.0,0.27877255]
[1642661733961,0.04892697,42040.0,42036.0,0.27877255]
[1642661734165,0.05592697,42040.0,42036.0,0.27877255]
[1642661734960,0.0549,42040.0,42036.0,0.27877255]
[1642661735210,0.05592697,42040.0,42036.0,0.27877255]
[1642661735417,0.09672878,42039.0,42038.0,0.00038662]
[1642661735811,0.19462878,42039.0,42038.0,0.00038662]
[1642661736012,0.21082878,42039.0,42038.0,0.00038662]
[1642661736212,0.21982878,42039.0,42038.0,0.00038662]
[1642661737613,0.21082878,42039.0,42038.0,0.00038662]
[1642661738216,0.21882878,42039.0,42038.0,0.00038662]
[1642661739471,0.21082878,42039.0,42038.0,0.00038662]
[1642661740168,0.21782878,42039.0,42036.0,0.27877279]
[1642661740570,0.09672878,42038.0,42036.0,0.27877279]
[1642661742175,0.10372878,42038.0,42036.0,0.27877279]
[1642661742369,0.16322578,42038.0,42036.0,0.27877279]
[1642661742577,0.066497,42038.0,42036.0,0.27877279]
[1642661742804,0.066497,42038.0,42036.0,0.27870762]
[1642661743005,0.14653386,42037.0,42036.0,0.27870762]
[1642661744216,0.15353386,42037.0,42036.0,0.27870762]
[1642661745405,0.14653386,42037.0,42036.0,0.27870762]
[1642661746207,0.15353386,42037.0,42036.0,0.27870762]
[1642661747549,0.14653386,42037.0,42036.0,0.27870762]
[1642661748351,0.15353386,42037.0,42036.0,0.27870762]
[1642661749551,0.14653386,42037.0,42036.0,0.27870762]
[1642661750212,0.10353386,42037.0,42036.0,0.27870762]
[1642661750417,0.007,42037.0,42036.0,0.26250762]
[1642661750612,0.007,42037.0,42036.0,0.64648262]
[1642661751211,0.007,42037.0,42036.0,0.26250762]
[1642661752110,0.00102695,42039.0,42036.0,0.26250762]
[1642661752309,0.004,42037.0,42036.0,0.26250762]
[1642661753612,0.00102695,42039.0,42036.0,0.26250762]
[1642661754259,0.007,42039.0,42036.0,0.26250762]
[1642661755456,0.007,42039.0,42038.0,0.00038662]
[1642661756158,0.01722696,42040.0,42038.0,0.00038662]
[1642661756355,0.01,42039.0,42038.0,0.00038662]
[1642661757561,0.0162,42039.0,42038.0,0.30038662]
[1642661758210,0.0242,42039.0,42038.0,0.30038662]
[1642661759013,0.008,42039.0,42038.0,0.63578749]
[1642661759212,0.008,42039.0,42038.0,1.3496822]
[1642661759612,0.00102698,42041.0,42038.0,1.3496822]
[1642661759812,0.00102698,42041.0,42039.0,0.383975]
[1642661760014,0.00102698,42041.0,42040.0,1.05787383]
[1642661760227,0.12495519,42048.0,42041.0,0.85]
[1642661760420,0.0162,42055.0,42047.0,0.0012677]
[1642661760615,0.0162,42055.0,42048.0,0.383975]